[Event "CZE-ch Open 2019"]
[Site "Ostrava"]
[Date "2019.05.03"]
[Round "7.17"]
[White "Vybiral, Zdenek"]
[Black "Stocek, Jiri"]
[Result "0-1"]
[ECO "E29"]
[WhiteElo "2274"]
[BlackElo "2563"]
[Annotator "ChessBase"]
[PlyCount "44"]
[EventDate "2019.04.27"]
[EventType "swiss"]
[EventCountry "CZE"]
[SourceTitle "playchess.com"]
[Source "ChessBase"]
[SourceQuality "1"]
[TimeControl "40/5400+30:1800+30"]

1. d4 {[%emt 0:00:00]} Nf6 {[%emt 0:06:48]} 2. c4 {[%emt 0:00:00]} e6 {[%emt 0:00:07]} 3. Nc3 {[%emt 0:00:00]} Bb4 {[%emt 0:00:06]} 4. e3 {[%emt 0:00:00]} c5 {[%emt 0:02:30]} 5. a3 {[%emt 0:00:12]} Bxc3+ {[%emt 0:03:23]} 6. bxc3 {[%emt 0:00:06]} Nc6 {[%emt 0:00:31]} 7. Bd3 {[%emt 0:00:17]} O-O {[%emt 0:00:07]} 8. Ne2 {[%emt 0:00:32]} b6 {[%emt 0:00:09]} 9. e4 {[%emt 0:00:29]} Ne8 {[%emt 0:00:22]} 10. O-O {[%emt 0:00:10]} Ba6 {[%emt 0:00:08]} 11. f4 {[%emt 0:00:11]} f5 {[%emt 0:00:22]} 12. e5 {[%emt 0:02:33]} Na5 {[%emt 0:02:15]} 13. d5 {[%emt 0:06:06]} d6 {[%emt 0:00:24]} 14. g4 {[%emt 0:05:18]} dxe5 {[%emt 0:07:10]} 15. fxe5 {[%emt 0:01:28]} Bxc4 {[%emt 0:00:32]} 16. gxf5 {[%emt 0:42:35]} Qxd5 {[%emt 0:08:13]} 17. Bxc4 {[%emt 0:08:44]} Qxc4 {[%emt 0:03:04]} 18. Rf4 {[%emt 0:01:32]} Qb3 {[%emt 0:01:37]} 19. Qd7 {[%emt 0:03:34]} exf5 {[%emt 0:02:30]} 20. c4 {[%emt 0:00:17]} Rf7 {[%emt 0:00:21]} 21. Qd5 {[%emt 0:07:46]} Nc7 {[%emt 0:00:13]} 22. Qg2 {[%emt 0:00:03]} Re8 {[%emt 0:02:11]} 0-1

[Event "CZE-ch Open 2019"]
[Site "Ostrava"]
[Date "2019.05.03"]
[Round "7.19"]
[White "Ockay, Tomas"]
[Black "Vokac, Marek"]
[Result "1/2-1/2"]
[ECO "A04"]
[WhiteElo "2131"]
[BlackElo "2343"]
[Annotator "ChessBase"]
[PlyCount "147"]
[EventDate "2019.04.27"]
[EventType "swiss"]
[EventCountry "CZE"]
[SourceTitle "playchess.com"]
[Source "ChessBase"]
[SourceQuality "1"]
[TimeControl "40/5400+30:1800+30"]

1. Nf3 {[%emt 0:00:00]} g6 {[%emt 0:00:00]} 2. d4 {[%emt 0:00:22]} Bg7 {[%emt 0:00:00]} 3. g3 {[%emt 0:00:26]} c5 {[%emt 0:00:11]} 4. c3 {[%emt 0:00:22]} cxd4 {[%emt 0:02:24]} 5. cxd4 {[%emt 0:00:04]} d5 {[%emt 0:00:05]} 6. Bg2 {[%emt 0:00:37]} Nc6 {[%emt 0:00:07]} 7. O-O {[%emt 0:00:24]} e6 {[%emt 0:00:49]} 8. Nc3 {[%emt 0:01:35]} Nge7 {[%emt 0:00:02]} 9. b3 {[%emt 0:14:27]} O-O {[%emt 0:06:03]} 10. Bb2 {[%emt 0:01:08]} b6 {[%emt 0:01:51]} 11. Rc1 {[%emt 0:02:24]} Ba6 {[%emt 0:01:47]} 12. Re1 {[%emt 0:00:21]} Rc8 {[%emt 0:00:09]} 13. Ba3 {[%emt 0:05:23]} Re8 {[%emt 0:07:43]} 14. e3 {[%emt 0:12:45]} Nf5 {[%emt 0:04:01]} 15. Bf1 {[%emt 0:00:59]} Bxf1 {[%emt 0:03:57]} 16. Kxf1 {[%emt 0:00:12]} h5 {[%emt 0:05:45]} 17. h4 {[%emt 0:08:51]} Qd7 {[%emt 0:06:49]} 18. Kg2 {[%emt 0:00:33]} Red8 {[%emt 0:02:24]} 19. Ne2 {[%emt 0:02:37]} Qb7 {[%emt 0:04:34]} 20. Qd3 {[%emt 0:06:53]} Nb8 {[%emt 0:12:21]} 21. Nf4 {[%emt 0:02:21]} Qa6 {[%emt 0:01:51]} 22. Qxa6 {[%emt 0:01:40]} Nxa6 {[%emt 0:00:02]} 23. Nd3 {[%emt 0:00:14]} f6 {[%emt 0:07:37]} 24. Kf1 {[%emt 0:10:46]} Nc7 {[%emt 0:11:35]} 25. Ke2 {[%emt 0:01:26]} Nb5 {[%emt 0:00:09]} 26. Bb2 {[%emt 0:00:19]} Nbd6 {[%emt 0:01:21]} 27. Nd2 {[%emt 0:06:54]} Kf7 {[%emt 0:05:56]} 28. Rxc8 {[%emt 0:04:26]} Rxc8 {[%emt 0:00:02]} 29. Rc1 {[%emt 0:00:27]} Rxc1 {[%emt 0:00:36]} 30. Bxc1 {[%emt 0:00:14]} g5 {[%emt 0:07:29]} 31. hxg5 {[%emt 0:01:29]} fxg5 {[%emt 0:00:03]} 32. Kf3 {[%emt 0:00:55]} g4+ {[%emt 0:02:33]} 33. Ke2 {[%emt 0:00:42]} Bh6 {[%emt 0:01:41]} 34. Ne5+ {[%emt 0:00:50]} Ke8 {[%emt 0:00:01]} 35. Ba3 {[%emt 0:03:21]} Nf7 {[%emt 0:00:15]} 36. Ng6 {[%emt 0:06:07]} Kd7 {[%emt 0:02:53]} 37. Nf8+ {[%emt 0:00:29]} Bxf8 {[%emt 0:00:02]} 38. Bxf8 {[%emt 0:00:06]} Ng5 {[%emt 0:00:41]} 39. Bb4 {[%emt 0:03:14]} h4 {[%emt 0:00:19]} 40. gxh4 {[%emt 0:00:11]} Nxh4 {[%emt 0:00:03]} 41. Nf1 {[%emt 0:03:30]} a5 {[%emt 0:12:22]} 42. Be1 {[%emt 0:03:13]} Ngf3 {[%emt 0:02:45]} 43. Bc3 {[%emt 0:02:55]} Nf5 {[%emt 0:00:42]} 44. Nd2 {[%emt 0:00:21]} Nxd2 {[%emt 0:00:57]} 45. Bxd2 {[%emt 0:01:09]} Nh4 {[%emt 0:00:54]} 46. Kd3 {[%emt 0:00:44]} Nf3 {[%emt 0:00:22]} 47. Bc3 {[%emt 0:00:07]} Ng5 {[%emt 0:00:20]} 48. Be1 {[%emt 0:00:18]} Ne4 {[%emt 0:00:22]} 49. Ke2 {[%emt 0:00:11]} Ng5 {[%emt 0:01:37]} 50. Kd3 {[%emt 0:00:06]} Kc6 {[%emt 0:00:45]} 51. a4 {[%emt 0:00:17]} Kd7 {[%emt 0:00:37]} 52. Bc3 {[%emt 0:01:24]} Ne4 {[%emt 0:00:28]} 53. Be1 {[%emt 0:00:07]} Kc6 {[%emt 0:02:27]} 54. Ke2 {[%emt 0:00:12]} Ng5 {[%emt 0:00:02]} 55. Bd2 {[%emt 0:00:33]} Kd6 {[%emt 0:02:03]} 56. Be1 {[%emt 0:01:13]} Kc6 {[%emt 0:02:57]} 57. Bc3 {[%emt 0:00:17]} Kb7 {[%emt 0:00:09]} 58. Be1 {[%emt 0:02:37]} Ka6 {[%emt 0:00:09]} 59. Kd3 {[%emt 0:01:11]} b5 {[%emt 0:00:26]} 60. axb5+ {[%emt 0:00:18]} Kxb5 {[%emt 0:00:01]} 61. Ke2 {[%emt 0:00:58]} a4 {[%emt 0:01:11]} 62. bxa4+ {[%emt 0:00:06]} Kxa4 {[%emt 0:00:01]} 63. Kd3 {[%emt 0:00:28]} Kb3 {[%emt 0:00:32]} 64. Ba5 {[%emt 0:00:55]} Ne4 {[%emt 0:02:10]} 65. Ke2 {[%emt 0:08:54]} Kc2 {[%emt 0:00:12]} 66. f3 {[%emt 0:08:25]} gxf3+ {[%emt 0:05:56]} 67. Kxf3 {[%emt 0:00:06]} Kd3 {[%emt 0:00:13]} 68. Bc7 {[%emt 0:00:17]} Nd2+ {[%emt 0:01:07]} 69. Kf2 {[%emt 0:01:47]} Nc4 {[%emt 0:00:48]} 70. Bf4 {[%emt 0:00:05]} Na3 {[%emt 0:00:28]} 71. Kf3 {[%emt 0:00:30]} Nc2 {[%emt 0:00:01]} 72. Bh6 {[%emt 0:00:55]} Nb4 {[%emt 0:02:00]} 73. Bf4 {[%emt 0:00:19]} Nc6 {[%emt 0:00:06]} 74. Bd6 {[%emt 0:00:23] Ke4+ Kxe4} 1/2-1/2

[Event "CZE-ch Open 2019"]
[Site "Ostrava"]
[Date "2019.05.03"]
[Round "7.20"]
[White "Taus, Martin"]
[Black "Svanda, Ondrej"]
[Result "1/2-1/2"]
[ECO "B22"]
[WhiteElo "2104"]
[BlackElo "2309"]
[Annotator "NA"]
[PlyCount "85"]
[EventDate "2019.04.27"]
[EventType "swiss"]
[EventCountry "CZE"]
[SourceTitle "playchess.com"]
[Source "ChessBase"]
[SourceQuality "1"]
[TimeControl "40/5400+30:1800+30"]

1. e4 {[%emt 0:00:00]} c5 {[%emt 0:00:00]} 2. c3 {[%emt 0:00:00]} Nf6 {[%emt 0:00:00]} 3. e5 {[%emt 0:00:00]} Nd5 {[%emt 0:00:00]} 4. d4 {[%emt 0:00:09]} cxd4 {[%emt 0:00:00]} 5. cxd4 {[%emt 0:00:04]} e6 {[%emt 0:00:03]} 6. Nc3 {[%emt 0:03:57]} Nxc3 {[%emt 0:00:04]} 7. bxc3 {[%emt 0:00:04]} Qc7 {[%emt 0:00:18]} 8. Qb3 {[%emt 0:04:09]} b6 {[%emt 0:02:08]} 9. Ba3 {[%emt 0:02:43]} d6 {[%emt 0:10:00]} 10. Bb5+ {[%emt 0:20:44]} Bd7 {[%emt 0:13:26]} 11. Nf3 {[%emt 0:07:19]} Be7 {[%emt 0:16:56]} 12. O-O {[%emt 0:25:18]} O-O {[%emt 0:05:55]} 13. Bxd7 {[%emt 0:07:10]} Nxd7 {[%emt 0:00:45]} 14. Qb4 {[%emt 0:01:13]} a5 {[%emt 0:03:10]} 15. Qb5 {[%emt 0:00:34]} Rfe8 {[%emt 0:01:39]} 16. Rab1 {[%emt 0:02:31]} Rab8 {[%emt 0:08:19]} 17. Rfc1 {[%emt 0:02:50]} Bf8 {[%emt 0:04:23]} 18. h3 {[%emt 0:03:54]} Red8 {[%emt 0:03:07]} 19. exd6 {[%emt 0:04:09]} Bxd6 {[%emt 0:00:01]} 20. Bxd6 {[%emt 0:00:12]} Qxd6 {[%emt 0:00:01]} 21. c4 {[%emt 0:00:19]} h6 {[%emt 0:06:22]} 22. Qa6 {[%emt 0:04:50]} Qc7 {[%emt 0:03:41]} 23. Qb5 {[%emt 0:00:35]} Rbc8 {[%emt 0:02:06]} 24. Rc2 {[%emt 0:01:57]} Qd6 {[%emt 0:03:13]} 25. a4 {[%emt 0:00:50]} Rc6 {[%emt 0:03:02]} 26. c5 {[%emt 0:02:59]} bxc5 {[%emt 0:01:36]} 27. Qxa5 {[%emt 0:00:12]} Rdc8 {[%emt 0:00:27]} 28. dxc5 {[%emt 0:00:32]} Rxc5 {[%emt 0:01:11]} 29. Rxc5 {[%emt 0:00:19]} Rxc5 {[%emt 0:03:54]} 30. Qa7 {[%emt 0:01:16]} Qc6 {[%emt 0:02:03]} 31. a5 {[%emt 0:01:04]} Qa4 {[%emt 0:04:25]} 32. a6 {[%emt 0:00:26]} Ra5 {[%emt 0:00:52]} 33. Qa8+ {[%emt 0:00:46]} Kh7 {[%emt 0:00:52]} 34. Qe8 {[%emt 0:00:52]} Ne5 {[%emt 0:00:56]} 35. Qxa4 {[%emt 0:01:12]} Nxf3+ {[%emt 0:00:05]} 36. gxf3 {[%emt 0:00:04]} Rxa4 {[%emt 0:00:01]} 37. Rb7 {[%emt 0:01:24]} Rxa6 {[%emt 0:00:04]} 38. Rxf7 {[%emt 0:00:04]} Kg6 {[%emt 0:00:05]} 39. Rf8 e5 {[%emt 0:00:46]} 40. Kg2 {[%emt 0:01:08]} Rf6 {[%emt 0:00:15]} 41. Ra8 {[%emt 0:31:03]} Kf5 {[%emt 0:30:15]} 42. Ra4 {[%emt 0:00:31]} Rg6+ 43. Kh2 1/2-1/2

[Event "CZE-ch Open 2019"]
[Site "Ostrava"]
[Date "2019.05.03"]
[Round "7.21"]
[White "Malik, Jan"]
[Black "Havelka, Ondrej"]
[Result "1-0"]
[ECO "C00"]
[WhiteElo "2286"]
[BlackElo "2156"]
[Annotator "NA"]
[PlyCount "89"]
[EventDate "2019.04.27"]
[EventType "swiss"]
[EventCountry "CZE"]
[SourceTitle "playchess.com"]
[Source "ChessBase"]
[SourceQuality "1"]
[TimeControl "40/5400+30:1800+30"]

1. e4 {[%emt 0:02:52]} e6 {[%emt 0:00:00]} 2. d3 {[%emt 0:00:10]} d5 {[%emt 0:00:00]} 3. Nd2 {[%emt 0:00:05]} Nf6 {[%emt 0:00:00]} 4. Ngf3 {[%emt 0:00:05]} b6 {[%emt 0:00:00]} 5. g3 {[%emt 0:03:40]} dxe4 {[%emt 0:00:08]} 6. dxe4 {[%emt 0:00:06]} Bb7 {[%emt 0:00:09]} 7. Qe2 {[%emt 0:06:52]} Nc6 {[%emt 0:03:06]} 8. a3 {[%emt 0:01:16]} a5 {[%emt 0:01:09]} 9. Bg2 {[%emt 0:01:35]} Ba6 {[%emt 0:02:13]} 10. c4 {[%emt 0:00:02]} e5 {[%emt 0:00:14]} 11. O-O {[%emt 0:00:32]} Bc5 {[%emt 0:03:23]} 12. Rb1 {[%emt 0:08:05]} Qe7 {[%emt 0:16:04]} 13. h3 {[%emt 0:15:44]} O-O {[%emt 0:00:35]} 14. Re1 {[%emt 0:00:14]} Rfd8 {[%emt 0:02:28]} 15. Nf1 {[%emt 0:00:31]} a4 {[%emt 0:20:42]} 16. Ne3 {[%emt 0:01:25]} Na5 {[%emt 0:12:55]} 17. Nf5 {[%emt 0:07:39]} Qe6 {[%emt 0:03:48]} 18. Ng5 {[%emt 0:09:56]} Qxc4 {[%emt 0:01:31]} 19. Qf3 {[%emt 0:00:04]} Nc6 {[%emt 0:19:29]} 20. Be3 {[%emt 0:03:59]} Bxe3 {[%emt 0:00:55]} 21. Nxe3 {[%emt 0:02:44]} Qb3 {[%emt 0:00:56]} 22. Nd5 {[%emt 0:01:53]} Qxf3 {[%emt 0:02:04]} 23. Nxf3 {[%emt 0:00:03]} Nxd5 {[%emt 0:06:43]} 24. exd5 {[%emt 0:01:20]} Nd4 {[%emt 0:00:59]} 25. Nxe5 {[%emt 0:00:07]} f6 {[%emt 0:00:51]} 26. Nf3 {[%emt 0:04:17]} Nxf3+ {[%emt 0:00:52]} 27. Bxf3 {[%emt 0:00:04]} Re8 {[%emt 0:00:33]} 28. d6 {[%emt 0:00:36]} Rxe1+ {[%emt 0:00:43]} 29. Rxe1 {[%emt 0:00:03]} Rd8 {[%emt 0:00:06]} 30. dxc7 {[%emt 0:00:13]} Rd2 {[%emt 0:00:27]} 31. Re8+ {[%emt 0:00:27]} Kf7 {[%emt 0:00:01]} 32. Ra8 {[%emt 0:00:18]} Rxb2 {[%emt 0:00:40]} 33. Rxa6 {[%emt 0:00:10]} Rc2 {[%emt 0:00:04]} 34. Ra7 {[%emt 0:00:37]} Ke6 {[%emt 0:00:04]} 35. Bb7 {[%emt 0:01:00]} Rxc7 {[%emt 0:00:16]} 36. Bd5+ {[%emt 0:00:32]} Kd6 {[%emt 0:00:02]} 37. Rxc7 {[%emt 0:00:09]} Kxc7 {[%emt 0:00:02]} 38. Bg8 {[%emt 0:01:01]} h6 {[%emt 0:00:03]} 39. Kf1 {[%emt 0:00:08]} Kd6 {[%emt 0:00:11]} 40. Ke2 {[%emt 0:00:08]} Kc5 {[%emt 0:00:15]} 41. Kd3 {[%emt 0:30:10]} Kb5 {[%emt 0:30:54]} 42. Kd4 {[%emt 0:00:14]} Ka5 {[%emt 0:00:09]} 43. Be6 {[%emt 0:00:18]} Ka6 {[%emt 0:00:12]} 44. Kc4 {[%emt 0:00:10]} Ka5 {[%emt 0:00:04]} 45. Bd7 {[%emt 0:00:12]} 1-0

[Event "CZE-ch Open 2019"]
[Site "Ostrava"]
[Date "2019.05.03"]
[Round "7.22"]
[White "Otruba, Marek"]
[Black "Obsivac, Josef"]
[Result "1/2-1/2"]
[ECO "A40"]
[WhiteElo "2103"]
[BlackElo "2285"]
[Annotator "NA"]
[PlyCount "136"]
[EventDate "2019.04.27"]
[EventType "swiss"]
[EventCountry "CZE"]
[SourceTitle "playchess.com"]
[Source "ChessBase"]
[SourceQuality "1"]
[TimeControl "40/5400+30:1800+30"]

1. d4 {[%emt 0:00:00]} Nf6 {[%emt 0:00:00]} 2. c4 {[%emt 0:00:00]} e6 {[%emt 0:00:00]} 3. g3 {[%emt 0:00:00]} Bb4+ {[%emt 0:00:21]} 4. Bd2 {[%emt 0:00:00]} a5 {[%emt 0:00:30]} 5. Bg2 {[%emt 0:02:02]} d6 {[%emt 0:01:26]} (5... O-O 6. Nf3 b6 7. O-O Bb7 8. Bf4 Be7 9. Nc3 Ne4 10. Nb5 c6 11. Nc7 Ra7 12. Qb3 d6 13. c5 Qxc7 14. cxb6 a4 15. bxc7 axb3 16. cxb8=Q Rxb8 17. axb3 Rba8 18. Rxa7 Rxa7 {½-½ (37) Jakovenko,D (2719)-Rapport,R (2726) Shenzhen 2019}) 6. e4 {[%emt 0:00:10] E00: Catalan Bogo-Indian (3 g3 Bb4+)} Nbd7 {[%emt 0:02:15]} 7. Nc3 {[%emt 0:01:15]} e5 {[%emt 0:00:41]} 8. Nge2 {[%emt 0:00:08]} exd4 {[%emt 0:04:38]} 9. Nxd4 {[%emt 0:00:11]} O-O {[%emt 0:01:01]} 10. O-O {[%emt 0:00:26]} Re8 $146 {[%emt 0:01:12]} ({Predecessor:} 10... Ne5 11. b3 Bc5 12. Nf5 Bxf5 13. exf5 {1-0 (34) Epishin,V (2549)-Brzezinski,A (2224) Vaxjo 2016}) 11. Re1 {[%emt 0:14:44]} Ne5 {[%emt 0:11:38]} 12. b3 {[%emt 0:02:52]} Nd3 {[%emt 0:11:08]} 13. Rf1 {[%emt 0:03:37]} c6 {[%emt 0:06:35]} 14. Qc2 {[%emt 0:03:34]} Ne5 {[%emt 0:01:59]} 15. h3 {[%emt 0:01:34]} Bc5 {[%emt 0:02:50]} 16. Nf5 {[%emt 0:01:01]} Bxf5 {[%emt 0:04:26]} 17. exf5 {[%emt 0:00:06]} Qc7 {[%emt 0:01:00]} 18. Kh2 {[%emt 0:01:26]} h6 {[%emt 0:01:22]} 19. f4 {[%emt 0:01:42]} Ned7 {[%emt 0:00:46]} 20. Rad1 {[%emt 0:01:20]} Rad8 {[%emt 0:09:41]} 21. Na4 {[%emt 0:11:54]} Ba3 {[%emt 0:09:59]} 22. Rfe1 {[%emt 0:25:05]} Kf8 {[%emt 0:01:10]} 23. g4 {[%emt 0:03:05]} Rxe1 {[%emt 0:01:20]} 24. Bxe1 {[%emt 0:01:18]} Re8 {[%emt 0:01:01]} 25. Bg3 {[%emt 0:01:48]} Qd8 {[%emt 0:07:08]} 26. Bf2 {[%emt 0:05:20]} Kg8 {[%emt 0:02:28]} 27. Bf3 {[%emt 0:00:35]} Qe7 {[%emt 0:02:03]} 28. Re1 {[%emt 0:01:35]} Qd8 {[%emt 0:00:41]} 29. Rxe8+ {[%emt 0:00:22]} Nxe8 {[%emt 0:00:48]} 30. Qd3 {[%emt 0:03:27]} Qe7 {[%emt 0:02:27]} 31. Qe3 {[%emt 0:02:40]} Qxe3 {[%emt 0:01:39]} 32. Bxe3 {[%emt 0:00:03]} Nc5 {[%emt 0:02:18]} 33. Nxc5 {[%emt 0:00:57]} Bxc5 {[%emt 0:00:02]} 34. Bxc5 {[%emt 0:05:25]} dxc5 {[%emt 0:00:02]} 35. Kg3 {[%emt 0:00:42]} Kf8 {[%emt 0:00:18]} 36. g5 {[%emt 0:03:21]} f6 {[%emt 0:00:26]} 37. Kg4 {[%emt 0:01:13]} Nd6 {[%emt 0:02:26]} 38. h4 {[%emt 0:02:12]} a4 {[%emt 0:05:14]} 39. Bd1 {[%emt 0:01:14]} a3 {[%emt 0:00:28]} 40. Bc2 {[%emt 0:00:23]} Nf7 {[%emt 0:02:11]} 41. Be4 {[%emt 0:04:48]} Ke7 {[%emt 0:03:49]} 42. Bd3 {[%emt 0:02:58]} hxg5 {[%emt 0:00:16]} 43. hxg5 {[%emt 0:00:33]} fxg5 {[%emt 0:00:15]} 44. Bc2 {[%emt 0:00:59]} gxf4 {[%emt 0:02:17]} 45. Kxf4 {[%emt 0:00:09]} Kf6 {[%emt 0:00:21]} 46. Bd3 {[%emt 0:01:33]} Nd6 {[%emt 0:02:47]} 47. Bb1 {[%emt 0:01:04]} Nf7 $2 {[%emt 0:01:38]} (47... b5 $19 48. Bd3 bxc4 49. bxc4 Nb7) 48. Bd3 {[%emt 0:00:11]} Ne5 {[%emt 0:00:42]} 49. Be2 {[%emt 0:00:34]} g6 {[%emt 0:02:06]} 50. fxg6 {[%emt 0:00:13]} Nxg6+ {[%emt 0:00:08]} 51. Ke4 {[%emt 0:00:11]} Ne5 {[%emt 0:00:25]} 52. Kf4 {[%emt 0:00:59]} Ke6 {[%emt 0:00:38]} 53. Ke4 {[%emt 0:00:05]} Kd6 {[%emt 0:00:26]} 54. Ke3 {[%emt 0:01:42]} Kc7 {[%emt 0:04:51]} 55. Ke4 {[%emt 0:01:02]} Nd7 {[%emt 0:00:09]} 56. Kd3 {[%emt 0:00:33]} Kb6 {[%emt 0:00:39]} 57. Kc3 {[%emt 0:00:16]} Ka5 {[%emt 0:00:15]} 58. Bg4 {[%emt 0:00:16]} Ne5 {[%emt 0:02:41]} 59. Bc8 {[%emt 0:00:39]} b5 {[%emt 0:01:16]} 60. Be6 {[%emt 0:01:11]} Nf3 {[%emt 0:01:09]} 61. Bd7 {[%emt 0:00:43]} Nd4 {[%emt 0:01:26]} ({Better is} 61... b4+ $17 62. Kc2 Nd4+ 63. Kb1 Kb6) 62. cxb5 {[%emt 0:04:50]} cxb5 {[%emt 0:00:38]} 63. b4+ {[%emt 0:01:32]} Kb6 {[%emt 0:00:29]} 64. bxc5+ {[%emt 0:00:07]} (64. Be8 $11 {keeps the balance.}) 64... Kxc5 {[%emt 0:00:16]} 65. Bxb5 {[%emt 0:00:36]} Nxb5+ {[%emt 0:00:54]} 66. Kc2 {[%emt 0:00:05]} Kc4 $19 {[%emt 0:02:39]} 67. Kb1 {[%emt 0:00:06]} Kd3 {[%emt 0:02:09]} 68. Ka1 {[%emt 0:00:09]} Nc3 1/2-1/2

[Event "CZE-ch Open 2019"]
[Site "Ostrava"]
[Date "2019.05.03"]
[Round "7.23"]
[White "Neumann, Filip"]
[Black "Vrana, Frantisek"]
[Result "0-1"]
[ECO "A08"]
[WhiteElo "2076"]
[BlackElo "2267"]
[Annotator "NA"]
[PlyCount "64"]
[EventDate "2019.04.27"]
[EventType "swiss"]
[EventCountry "CZE"]
[SourceTitle "playchess.com"]
[Source "ChessBase"]
[SourceQuality "1"]
[TimeControl "40/5400+30:1800+30"]

1. e4 {[%emt 0:00:00]} e6 {[%emt 0:00:00]} 2. d3 {[%emt 0:00:22]} d5 {[%emt 0:00:05]} 3. Nd2 {[%emt 0:00:11]} c5 {[%emt 0:00:11]} 4. g3 {[%emt 0:00:15]} Nc6 {[%emt 0:00:08]} 5. Bg2 {[%emt 0:00:12]} Nf6 {[%emt 0:00:08]} 6. Ngf3 {[%emt 0:00:06]} Be7 {[%emt 0:00:06]} 7. O-O {[%emt 0:00:12]} O-O {[%emt 0:00:06]} 8. Re1 {[%emt 0:00:06]} b5 {[%emt 0:00:08]} 9. e5 {[%emt 0:00:18]} Nd7 {[%emt 0:00:06]} 10. Nf1 {[%emt 0:00:05]} b4 {[%emt 0:00:15]} 11. h4 {[%emt 0:00:48]} a5 {[%emt 0:00:07]} 12. N1h2 {[%emt 0:00:25]} a4 {[%emt 0:00:08]} 13. a3 {[%emt 0:01:31]} bxa3 {[%emt 0:00:07]} 14. bxa3 {[%emt 0:00:28]} Rb8 {[%emt 0:00:16]} 15. Ng4 {[%emt 0:04:05]} Ba6 {[%emt 0:00:54]} 16. Bf4 {[%emt 0:07:16]} Rb2 {[%emt 0:02:50]} 17. Ng5 {[%emt 0:03:28]} Nd4 {[%emt 0:02:42]} 18. Ne3 {[%emt 0:04:24]} Qe8 {[%emt 0:05:45]} 19. c4 {[%emt 0:18:29]} dxc4 {[%emt 0:05:12]} 20. dxc4 {[%emt 0:04:18]} Rb3 {[%emt 0:02:46]} 21. Be4 {[%emt 0:16:04]} f5 {[%emt 0:08:16]} 22. exf6 {[%emt 0:04:53]} Nxf6 {[%emt 0:00:08]} 23. Nc2 {[%emt 0:07:53]} Nxe4 {[%emt 0:05:14]} 24. Rxe4 {[%emt 0:00:27]} Bxg5 {[%emt 0:03:26]} 25. Nxd4 {[%emt 0:02:36]} cxd4 {[%emt 0:00:38]} 26. hxg5 {[%emt 0:01:11]} d3 {[%emt 0:02:45]} 27. Bd6 {[%emt 0:05:14]} Qc6 {[%emt 0:02:27]} 28. Bxf8 {[%emt 0:04:52]} Qxe4 {[%emt 0:00:09]} 29. Bb4 {[%emt 0:01:38]} Bb7 {[%emt 0:01:54]} 30. f3 {[%emt 0:00:17]} Qe3+ {[%emt 0:00:16]} 31. Kf1 {[%emt 0:02:18]} Rb2 {[%emt 0:00:36]} 32. Be1 {[%emt 0:03:20]} Bxf3 0-1

[Event "CZE-ch Open 2019"]
[Site "Ostrava"]
[Date "2019.05.03"]
[Round "7.24"]
[White "Freisler, Pavel"]
[Black "Kana, Pavel"]
[Result "1-0"]
[ECO "A06"]
[WhiteElo "2245"]
[BlackElo "2013"]
[Annotator "NA"]
[PlyCount "129"]
[EventDate "2019.04.27"]
[EventType "swiss"]
[EventCountry "CZE"]
[SourceTitle "playchess.com"]
[Source "ChessBase"]
[SourceQuality "1"]
[TimeControl "40/5400+30:1800+30"]

1. Nf3 {[%emt 0:00:00]} d5 {[%emt 0:00:57]} 2. g3 {[%emt 0:01:40]} Nf6 {[%emt 0:01:36]} 3. Bg2 {[%emt 0:00:05]} Bf5 {[%emt 0:02:49]} 4. c4 {[%emt 0:05:02]} c6 {[%emt 0:03:10]} 5. cxd5 {[%emt 0:00:22]} cxd5 {[%emt 0:02:24]} 6. Qb3 {[%emt 0:00:15]} Qb6 {[%emt 0:05:41]} 7. Qxb6 {[%emt 0:00:06]} axb6 {[%emt 0:00:01]} 8. Nc3 {[%emt 0:00:08]} Nc6 {[%emt 0:03:39]} 9. d3 {[%emt 0:02:17]} e5 {[%emt 0:06:51] A11: English Opening: 1...c6} 10. O-O {[%emt 0:41:50]} Be7 {[%emt 0:14:52]} (10... h6 11. Nxd5 Nxd5 12. e4 Be6 13. exd5 Bxd5 14. Nxe5 Bxg2 15. Kxg2 Nxe5 16. Re1 Bd6 17. d4 {½-½ (50) Piorun,K (2634)-Abdusattorov,N (2546) St Petersburg 2018}) 11. Bg5 {[%emt 0:04:57]} Be6 {[%emt 0:05:53]} 12. Nd2 {[%emt 0:05:54]} Rd8 {[%emt 0:04:38]} 13. Nb5 {[%emt 0:11:43]} O-O {[%emt 0:19:55]} 14. f4 $146 {[%emt 0:09:12]} ({Predecessor:} 14. Nb3) 14... Ng4 {[%emt 0:07:14]} 15. Bxe7 {[%emt 0:00:23]} Nxe7 {[%emt 0:00:02]} 16. fxe5 {[%emt 0:00:44]} Nxe5 {[%emt 0:02:30]} 17. Nd4 {[%emt 0:00:32]} N7c6 {[%emt 0:01:46]} 18. N2b3 {[%emt 0:00:32]} Rfe8 {[%emt 0:02:08]} 19. Rac1 {[%emt 0:00:26]} Ra8 {[%emt 0:01:11]} 20. a3 {[%emt 0:00:14]} Rad8 {[%emt 0:00:48]} 21. h3 {[%emt 0:01:09]} Ra8 {[%emt 0:00:33]} 22. Nb5 {[%emt 0:00:37]} Rad8 {[%emt 0:01:29]} 23. N3d4 {[%emt 0:00:32]} Re7 {[%emt 0:01:42]} 24. Rc3 {[%emt 0:02:39]} h6 {[%emt 0:03:33]} 25. Rfc1 {[%emt 0:00:41]} Kf8 {[%emt 0:01:50]} 26. Kf2 {[%emt 0:03:02]} Ke8 {[%emt 0:00:46]} 27. R3c2 {[%emt 0:00:58]} Kf8 {[%emt 0:01:13]} 28. Ke1 {[%emt 0:01:06]} Ke8 {[%emt 0:00:28]} 29. Kd2 {[%emt 0:00:02]} Kf8 {[%emt 0:01:20]} 30. Rf1 {[%emt 0:00:02]} Kg8 {[%emt 0:00:46]} 31. h4 {[%emt 0:01:13]} Bg4 {[%emt 0:00:31]} 32. Rf4 {[%emt 0:01:00]} Bc8 {[%emt 0:00:41]} 33. Nf3 {[%emt 0:00:59]} Ng6 {[%emt 0:00:59]} 34. Ra4 {[%emt 0:00:21]} Na5 {[%emt 0:00:55]} 35. Nbd4 {[%emt 0:01:09]} Nf8 {[%emt 0:01:42]} 36. Rb4 {[%emt 0:01:36]} Nd7 {[%emt 0:00:37]} 37. Bh3 {[%emt 0:00:48]} Nc5 {[%emt 0:00:45]} 38. Bxc8 {[%emt 0:00:26]} Rxc8 {[%emt 0:00:19]} 39. Rxb6 {[%emt 0:00:10]} Ne4+ {[%emt 0:00:43]} 40. dxe4 {[%emt 0:01:41]} Nc4+ {[%emt 0:00:25]} 41. Rxc4 {[%emt 0:30:14]} dxc4 {[%emt 0:01:20]} 42. e5 {[%emt 0:00:00]} Rc5 {[%emt 0:06:39]} 43. Kc3 {[%emt 0:00:00]} g6 {[%emt 0:00:59] [#]} 44. h5 $1 {[%emt 0:00:00]} Kh7 {[%emt 0:05:26]} 45. hxg6+ {[%emt 0:00:00]} fxg6 {[%emt 0:00:17]} 46. Rb4 {[%emt 0:00:00]} g5 {[%emt 0:02:35]} 47. g4 {[%emt 0:00:00]} b5 {[%emt 0:05:23]} 48. Rxb5 {[%emt 0:00:00]} Rxb5 {[%emt 0:00:44]} 49. Nxb5 {[%emt 0:00:00]} h5 {[%emt 0:01:49]} 50. gxh5 {[%emt 0:00:00]} g4 {[%emt 0:02:01]} 51. Nh4 {[%emt 0:00:00]} Rxe5 {[%emt 0:01:47]} 52. Nd4 {[%emt 0:00:00]} Kh6 {[%emt 0:02:47]} 53. Kxc4 {[%emt 0:00:00]} Rxh5 {[%emt 0:01:10]} 54. Nhf5+ {[%emt 0:02:48]} Kg5 {[%emt 0:01:12]} 55. b4 {[%emt 0:02:07]} Rh3 {[%emt 0:01:30]} 56. b5 {[%emt 0:01:48]} Rxa3 {[%emt 0:00:55]} 57. b6 {[%emt 0:00:02]} Ra8 {[%emt 0:01:37]} 58. Kc5 {[%emt 0:00:32]} Rc8+ {[%emt 0:00:52]} 59. Kd6 {[%emt 0:01:15]} Kf4 {[%emt 0:00:32]} 60. Kd7 {[%emt 0:01:45]} (60. b7 $142 Rh8 61. Nc6) 60... Rh8 {[%emt 0:00:26]} 61. b7 {[%emt 0:00:37]} Rb8 {[%emt 0:00:35]} 62. Kc7 {[%emt 0:00:07]} Rxb7+ {[%emt 0:00:29]} 63. Kxb7 {[%emt 0:00:02]} g3 {[%emt 0:00:31] [#]} 64. Nxg3 $1 {[%emt 0:00:13]} Kxg3 {[%emt 0:00:14]} 65. e3 1-0